[Event "Titled Tuesday Blitz May 30 Late 2023"]
[White "Martinez, Ayelen"]
[Black "Przybylski, Wojciech"]
[WhiteFideId "118702"]
[BlackFideId "1117599"]
[WhiteElo "2125"]
[BlackElo "2222"]
[Result "0-1"]
[Round "10"]
[TimeControl "180+2"]
[Date "2023.05.31"]
[WhiteClock "0:00:04"]
[BlackClock "0:01:19"]

1. e4 {[%clk 0:02:23]}  e5 {[%clk 0:02:51]} 2. Nf3 {[%clk 0:02:22]}  Nc6 {[%clk 0:02:51]} 3. Bb5 {[%clk 0:02:23]}  a6 {[%clk 0:02:51]} 4. Ba4 {[%clk 0:02:23]}  Nf6 {[%clk 0:02:50]} 5. O-O {[%clk 0:02:23]}  Be7 {[%clk 0:02:49]} 6. c3 {[%clk 0:02:21]}  b5 {[%clk 0:02:48]} 7. Bb3 {[%clk 0:02:21]}  O-O {[%clk 0:02:44]} 8. h3 {[%clk 0:02:22]}  Nxe4 {[%clk 0:02:43]} 9. Re1 {[%clk 0:02:12]}  Nc5 {[%clk 0:02:42]} 10. Bc2 {[%clk 0:02:10]}  e4 {[%clk 0:02:41]} 11. Nh2 {[%clk 0:01:58]}  d5 {[%clk 0:02:38]} 12. a4 {[%clk 0:01:50]}  b4 {[%clk 0:02:37]} 13. d4 {[%clk 0:01:47]}  Ne6 {[%clk 0:02:32]} 14. Nd2 {[%clk 0:01:44]}  bxc3 {[%clk 0:02:30]} 15. bxc3 {[%clk 0:01:45]}  Na5 {[%clk 0:02:25]} 16. Ndf1 {[%clk 0:01:44]}  f5 {[%clk 0:02:23]} 17. Ng3 {[%clk 0:01:39]}  f4 {[%clk 0:02:19]} 18. Nxe4 {[%clk 0:01:24]}  dxe4 {[%clk 0:02:19]} 19. Bxe4 {[%clk 0:01:25]}  Rb8 {[%clk 0:02:13]} 20. Qh5 {[%clk 0:01:15]}  Ng5 {[%clk 0:02:09]} 21. Bd3 {[%clk 0:00:59]}  Rb6 {[%clk 0:02:06]} 22. Ng4 {[%clk 0:00:56]}  Bxg4 {[%clk 0:02:03]} 23. Qxg4 {[%clk 0:00:52]}  h5 {[%clk 0:01:55]} 24. Qxh5 {[%clk 0:00:45]}  Rh6 {[%clk 0:01:54]} 25. Qg4 {[%clk 0:00:45]}  Rh4 {[%clk 0:01:54]} 26. Qd1 {[%clk 0:00:39]}  Bd6 {[%clk 0:01:52]} 27. Qd2 {[%clk 0:00:13]}  Rxh3 {[%clk 0:01:48]} 28. Ba3 {[%clk 0:00:06]}  f3 {[%clk 0:01:22]} 29. Bxd6 {[%clk 0:00:04]}  Qxd6 {[%clk 0:01:19]} 0-1


[Site "https://www.chess.com"]

[Event "Titled Tuesday Blitz May 30 Late 2023"]
[White "Prydun, Andriy"]
[Black "Sailer, Mike"]
[WhiteFideId "14145898"]
[BlackFideId "2012901"]
[WhiteElo "2164"]
[BlackElo "2109"]
[Result "0-1"]
[Round "10"]
[TimeControl "180+2"]
[Date "2023.05.31"]
[WhiteClock "0:00:30"]
[BlackClock "0:00:20"]

1. e4 {[%clk 0:02:53]}  d5 {[%clk 0:02:59]} 2. exd5 {[%clk 0:02:53]}  Qxd5 {[%clk 0:03:00]} 3. Nc3 {[%clk 0:02:53]}  Qd6 {[%clk 0:02:58]} 4. d4 {[%clk 0:02:53]}  Nf6 {[%clk 0:02:59]} 5. Nf3 {[%clk 0:02:53]}  c6 {[%clk 0:02:59]} 6. Ne5 {[%clk 0:02:50]}  Nbd7 {[%clk 0:02:57]} 7. Nc4 {[%clk 0:02:49]}  Qc7 {[%clk 0:02:57]} 8. Qf3 {[%clk 0:02:49]}  Nb6 {[%clk 0:02:57]} 9. Ne5 {[%clk 0:02:48]}  Nbd5 {[%clk 0:02:53]} 10. Ne2 {[%clk 0:02:47]}  h5 {[%clk 0:02:42]} 11. h3 {[%clk 0:02:46]}  Bg4 {[%clk 0:02:32]} 12. Qb3 {[%clk 0:02:44]}  Bxe2 {[%clk 0:02:26]} 13. Bxe2 {[%clk 0:02:42]}  e6 {[%clk 0:02:24]} 14. c4 {[%clk 0:02:36]}  Nb6 {[%clk 0:02:14]} 15. Be3 {[%clk 0:02:32]}  Be7 {[%clk 0:01:57]} 16. Rd1 {[%clk 0:02:01]}  Nbd7 {[%clk 0:01:52]} 17. f4 {[%clk 0:02:01]}  Nxe5 {[%clk 0:01:49]} 18. fxe5 {[%clk 0:01:57]}  Ne4 {[%clk 0:01:46]} 19. Bf4 {[%clk 0:01:26]}  g5 {[%clk 0:01:34]} 20. Bh2 {[%clk 0:01:25]}  Qa5+ {[%clk 0:01:19]} 21. Kf1 {[%clk 0:01:18]}  Nd2+ {[%clk 0:01:17]} 22. Rxd2 {[%clk 0:01:18]}  Qxd2 {[%clk 0:01:17]} 23. Qc3 {[%clk 0:01:18]}  Qxc3 {[%clk 0:01:12]} 24. bxc3 {[%clk 0:01:18]}  O-O-O {[%clk 0:00:59]} 25. c5 {[%clk 0:01:14]}  f6 {[%clk 0:01:00]} 26. exf6 {[%clk 0:01:12]}  Bxf6 {[%clk 0:01:00]} 27. g4 {[%clk 0:01:04]}  h4 {[%clk 0:00:58]} 28. Kg2 {[%clk 0:01:02]}  e5 {[%clk 0:00:54]} 29. Rf1 {[%clk 0:01:02]}  Rhf8 {[%clk 0:00:50]} 30. Bd3 {[%clk 0:01:02]}  b6 {[%clk 0:00:42]} 31. Ba6+ {[%clk 0:00:58]}  Kd7 {[%clk 0:00:33]} 32. dxe5 {[%clk 0:00:57]}  Be7 {[%clk 0:00:34]} 33. e6+ {[%clk 0:00:53]}  Kxe6 {[%clk 0:00:32]} 34. Bc4+ {[%clk 0:00:52]}  Kd7 {[%clk 0:00:29]} 35. Rd1+ {[%clk 0:00:49]}  Ke8 {[%clk 0:00:29]} 36. Rxd8+ {[%clk 0:00:46]}  Kxd8 {[%clk 0:00:24]} 37. Bb8 {[%clk 0:00:43]}  Bxc5 {[%clk 0:00:23]} 38. Bxa7 {[%clk 0:00:38]}  Kc8 {[%clk 0:00:20]} 39. a4 {[%clk 0:00:36]}  Kb7 {[%clk 0:00:19]} 40. a5 {[%clk 0:00:34]}  Kxa7 {[%clk 0:00:19]} 41. axb6+ {[%clk 0:00:34]}  Kxb6 {[%clk 0:00:20]} 42. Bd3 {[%clk 0:00:30]}  Rf2+ {[%clk 0:00:20]} 43. Kh1 {[%clk 0:00:30]}  Rf3 {[%clk 0:00:20]} 0-1


[Site "https://www.chess.com"]

[Event "Titled Tuesday Blitz May 30 Late 2023"]
[White "mohsengabr2002"]
[Black "Gerbelli Neto, Eduardo"]
[BlackFideId "2103281"]
[WhiteElo "2225"]
[BlackElo "2178"]
[Result "1-0"]
[Round "10"]
[TimeControl "180+2"]
[Date "2023.05.31"]
[WhiteClock "0:02:34"]
[BlackClock "0:02:08"]

1. e4 {[%clk 0:03:00]}  e5 {[%clk 0:02:59]} 2. Nf3 {[%clk 0:02:58]}  Nc6 {[%clk 0:02:59]} 3. Nc3 {[%clk 0:02:59]}  Nf6 {[%clk 0:02:59]} 4. g3 {[%clk 0:02:58]}  d5 {[%clk 0:02:58]} 5. exd5 {[%clk 0:02:57]}  Nxd5 {[%clk 0:02:59]} 6. Bg2 {[%clk 0:02:55]}  Be6 {[%clk 0:02:49]} 7. O-O {[%clk 0:02:53]}  Nxc3 {[%clk 0:02:42]} 8. bxc3 {[%clk 0:02:51]}  Bd6 {[%clk 0:02:42]} 9. d3 {[%clk 0:02:51]}  O-O {[%clk 0:02:41]} 10. h3 {[%clk 0:02:49]}  h6 {[%clk 0:02:36]} 11. Re1 {[%clk 0:02:48]}  f5 {[%clk 0:02:32]} 12. a4 {[%clk 0:02:48]}  Qf6 {[%clk 0:02:32]} 13. Bb2 {[%clk 0:02:44]}  Rad8 {[%clk 0:02:12]} 14. c4 {[%clk 0:02:43]}  Nd4 {[%clk 0:02:07]} 15. Nxd4 {[%clk 0:02:34]}  exd4 {[%clk 0:02:08]} 16. Rxe6 {[%clk 0:02:34]} 1-0


[Site "https://www.chess.com"]

[Event "Titled Tuesday Blitz May 30 Late 2023"]
[White "zano2023"]
[Black "Stachanczyk, Jacek"]
[BlackFideId "1116657"]
[WhiteElo "2194"]
[BlackElo "2084"]
[Result "0-1"]
[Round "10"]
[TimeControl "180+2"]
[Date "2023.05.31"]
[WhiteClock "0:01:24"]
[BlackClock "0:01:47"]

1. d4 {[%clk 0:02:59]}  Nf6 {[%clk 0:02:56]} 2. Nd2 {[%clk 0:02:58]}  d5 {[%clk 0:02:55]} 3. Ngf3 {[%clk 0:02:58]}  c5 {[%clk 0:02:54]} 4. e3 {[%clk 0:02:58]}  Nc6 {[%clk 0:02:54]} 5. c3 {[%clk 0:02:59]}  cxd4 {[%clk 0:02:53]} 6. exd4 {[%clk 0:02:58]}  Bg4 {[%clk 0:02:52]} 7. Qa4 {[%clk 0:02:56]}  Bd7 {[%clk 0:02:28]} 8. Qd1 {[%clk 0:02:55]}  Bg4 {[%clk 0:02:28]} 9. Qa4 {[%clk 0:02:54]}  Bxf3 {[%clk 0:02:28]} 10. Nxf3 {[%clk 0:02:53]}  a6 {[%clk 0:02:27]} 11. Ne5 {[%clk 0:02:52]}  Rc8 {[%clk 0:02:27]} 12. Nxc6 {[%clk 0:02:44]}  Rxc6 {[%clk 0:02:24]} 13. Bxa6 {[%clk 0:02:43]}  e6 {[%clk 0:02:06]} 14. Bb5 {[%clk 0:02:42]}  Qc7 {[%clk 0:02:07]} 15. h3 {[%clk 0:02:19]}  Be7 {[%clk 0:02:05]} 16. Qa8+ {[%clk 0:02:13]}  Bd8 {[%clk 0:02:04]} 17. Qa3 {[%clk 0:02:07]}  Be7 {[%clk 0:02:01]} 18. Qa8+ {[%clk 0:02:03]}  Bd8 {[%clk 0:02:02]} 19. Qa4 {[%clk 0:01:57]}  O-O {[%clk 0:02:01]} 20. Bxc6 {[%clk 0:01:57]}  bxc6 {[%clk 0:02:02]} 21. O-O {[%clk 0:01:56]}  Ne4 {[%clk 0:01:59]} 22. Re1 {[%clk 0:01:47]}  Qd6 {[%clk 0:01:59]} 23. Qa3 {[%clk 0:01:36]}  Qc7 {[%clk 0:01:53]} 24. c4 {[%clk 0:01:26]}  Be7 {[%clk 0:01:48]} 25. c5 {[%clk 0:01:26]}  e5 {[%clk 0:01:48]} 26. dxe5 {[%clk 0:01:25]}  Bxc5 {[%clk 0:01:48]} 27. Be3 {[%clk 0:01:24]}  Bxa3 {[%clk 0:01:47]} 0-1


[Site "https://www.chess.com"]

[Event "Titled Tuesday Blitz May 30 Late 2023"]
[White "rionelG"]
[Black "lluiss"]
[WhiteElo "2187"]
[BlackElo "2303"]
[Result "1/2-1/2"]
[Round "10"]
[TimeControl "180+2"]
[Date "2023.05.31"]
[WhiteClock "0:00:13"]
[BlackClock "0:00:06"]

1. e4 {[%clk 0:03:00]}  c5 {[%clk 0:02:57]} 2. g3 {[%clk 0:03:00]}  g6 {[%clk 0:02:52]} 3. Bg2 {[%clk 0:03:01]}  Bg7 {[%clk 0:02:52]} 4. Ne2 {[%clk 0:03:02]}  e5 {[%clk 0:02:51]} 5. c3 {[%clk 0:02:56]}  Nc6 {[%clk 0:02:50]} 6. d3 {[%clk 0:02:57]}  Nge7 {[%clk 0:02:50]} 7. Be3 {[%clk 0:02:57]}  d6 {[%clk 0:02:45]} 8. d4 {[%clk 0:02:57]}  cxd4 {[%clk 0:02:38]} 9. cxd4 {[%clk 0:02:58]}  Qb6 {[%clk 0:02:33]} 10. d5 {[%clk 0:01:44]}  Qxb2 {[%clk 0:02:29]} 11. Nd2 {[%clk 0:01:33]}  Nb4 {[%clk 0:02:10]} 12. O-O {[%clk 0:01:32]}  Nc2 {[%clk 0:01:56]} 13. Nc4 {[%clk 0:01:28]}  Nxe3 {[%clk 0:01:54]} 14. fxe3 {[%clk 0:01:01]}  Qb4 {[%clk 0:01:48]} 15. Qd3 {[%clk 0:00:59]}  O-O {[%clk 0:01:43]} 16. Rab1 {[%clk 0:00:51]}  Qc5 {[%clk 0:01:42]} 17. Rfc1 {[%clk 0:00:51]}  Bh6 {[%clk 0:01:42]} 18. a4 {[%clk 0:00:32]}  Bg4 {[%clk 0:01:36]} 19. Rb5 {[%clk 0:00:31]}  Bxe2 {[%clk 0:01:21]} 20. Qxe2 {[%clk 0:00:30]}  Qc7 {[%clk 0:01:14]} 21. Rcb1 {[%clk 0:00:29]}  b6 {[%clk 0:01:12]} 22. a5 {[%clk 0:00:29]}  Rac8 {[%clk 0:01:04]} 23. Bf1 {[%clk 0:00:28]}  Rb8 {[%clk 0:00:53]} 24. axb6 {[%clk 0:00:28]}  axb6 {[%clk 0:00:53]} 25. Rxb6 {[%clk 0:00:28]}  Rxb6 {[%clk 0:00:53]} 26. Rxb6 {[%clk 0:00:28]}  Nc8 {[%clk 0:00:47]} 27. Rc6 {[%clk 0:00:28]}  Qb8 {[%clk 0:00:45]} 28. Bh3 {[%clk 0:00:27]}  Rd8 {[%clk 0:00:39]} 29. Qc2 {[%clk 0:00:20]}  Na7 {[%clk 0:00:35]} 30. Rb6 {[%clk 0:00:18]}  Qc7 {[%clk 0:00:33]} 31. Qb3 {[%clk 0:00:17]}  Rc8 {[%clk 0:00:26]} 32. Bxc8 {[%clk 0:00:15]}  Nxc8 {[%clk 0:00:24]} 33. Rc6 {[%clk 0:00:16]}  Qd7 {[%clk 0:00:23]} 34. Qb8 {[%clk 0:00:15]}  Kg7 {[%clk 0:00:22]} 35. Qxc8 {[%clk 0:00:16]}  Qa7 {[%clk 0:00:21]} 36. Kg2 {[%clk 0:00:14]}  Qa2+ {[%clk 0:00:21]} 37. Kh3 {[%clk 0:00:14]}  Qb1 {[%clk 0:00:21]} 38. Qd7 {[%clk 0:00:13]}  Qf1+ {[%clk 0:00:20]} 39. Kh4 {[%clk 0:00:13]}  Qf3 {[%clk 0:00:08]} 40. Qg4 {[%clk 0:00:12]}  Qf6+ {[%clk 0:00:06]} 41. Kh3 {[%clk 0:00:12]}  Qf1+ {[%clk 0:00:06]} 42. Kh4 {[%clk 0:00:13]}  Qf6+ {[%clk 0:00:06]} 43. Kh3 {[%clk 0:00:13]}  Qf1+ {[%clk 0:00:05]} 44. Kh4 {[%clk 0:00:13]}  Qf6+ {[%clk 0:00:06]} 1/2-1/2


[Site "https://www.chess.com"]

[Event "Titled Tuesday Blitz May 30 Late 2023"]
[White "dodoucb"]
[Black "Kornyukov, Alexey"]
[BlackFideId "4150457"]
[WhiteElo "2299"]
[BlackElo "2352"]
[Result "1-0"]
[Round "10"]
[TimeControl "180+2"]
[Date "2023.05.31"]
[WhiteClock "0:00:06"]
[BlackClock "0:00:03"]

1. e4 {[%clk 0:02:59]}  c5 {[%clk 0:02:57]} 2. Nc3 {[%clk 0:02:57]}  Nc6 {[%clk 0:02:56]} 3. Bb5 {[%clk 0:02:52]}  Nd4 {[%clk 0:02:48]} 4. Bd3 {[%clk 0:02:38]}  e6 {[%clk 0:02:26]} 5. Nf3 {[%clk 0:02:26]}  Nc6 {[%clk 0:02:26]} 6. Ne2 {[%clk 0:02:13]}  Nf6 {[%clk 0:02:08]} 7. c3 {[%clk 0:02:11]}  d5 {[%clk 0:02:05]} 8. exd5 {[%clk 0:01:57]}  exd5 {[%clk 0:02:05]} 9. O-O {[%clk 0:01:49]}  Bg4 {[%clk 0:02:00]} 10. Ng3 {[%clk 0:01:46]}  Be7 {[%clk 0:01:58]} 11. h3 {[%clk 0:01:45]}  Bd7 {[%clk 0:01:53]} 12. Bf5 {[%clk 0:01:25]}  O-O {[%clk 0:01:51]} 13. d3 {[%clk 0:01:16]}  Bd6 {[%clk 0:01:48]} 14. Bg5 {[%clk 0:01:01]}  Bxg3 {[%clk 0:01:44]} 15. Bxd7 {[%clk 0:00:55]}  Qxd7 {[%clk 0:01:30]} 16. fxg3 {[%clk 0:00:53]}  Ne8 {[%clk 0:01:13]} 17. Nh4 {[%clk 0:00:43]}  f6 {[%clk 0:01:03]} 18. Bd2 {[%clk 0:00:38]}  d4 {[%clk 0:01:00]} 19. c4 {[%clk 0:00:36]}  Nd6 {[%clk 0:00:55]} 20. Qf3 {[%clk 0:00:32]}  Ne5 {[%clk 0:00:49]} 21. Qd5+ {[%clk 0:00:32]}  Ndf7 {[%clk 0:00:44]} 22. Qxd7 {[%clk 0:00:30]}  Nxd7 {[%clk 0:00:45]} 23. Nf5 {[%clk 0:00:28]}  Nde5 {[%clk 0:00:42]} 24. Ne7+ {[%clk 0:00:27]}  Kh8 {[%clk 0:00:42]} 25. Rad1 {[%clk 0:00:17]}  Nxd3 {[%clk 0:00:05]} 26. b4 {[%clk 0:00:16]}  Nb2 {[%clk 0:00:05]} 27. Rb1 {[%clk 0:00:13]}  Nxc4 {[%clk 0:00:05]} 28. Be1 {[%clk 0:00:10]}  Rfe8 {[%clk 0:00:05]} 29. Nd5 {[%clk 0:00:09]}  b6 {[%clk 0:00:04]} 30. Nc7 {[%clk 0:00:07]}  Ne3 {[%clk 0:00:03]} 31. Rf3 {[%clk 0:00:06]}  c4 {[%clk 0:00:03]} 32. Nxa8 {[%clk 0:00:05]}  Rxa8 {[%clk 0:00:03]} 33. Bf2 {[%clk 0:00:06]} 1-0


[Site "https://www.chess.com"]

[Event "Titled Tuesday Blitz May 30 Late 2023"]
[White "Maluco_do_Natal_00"]
[Black "Celestino, Rafael Teixeira"]
[BlackFideId "2108925"]
[WhiteElo "2068"]
[BlackElo "2310"]
[Result "0-1"]
[Round "10"]
[TimeControl "180+2"]
[Date "2023.05.31"]
[WhiteClock "0:00:02"]
[BlackClock "0:02:38"]

1. e4 {[%clk 0:03:00]}  e5 {[%clk 0:02:59]} 2. Nf3 {[%clk 0:03:01]}  Nc6 {[%clk 0:03:00]} 3. Bb5 {[%clk 0:03:01]}  a6 {[%clk 0:02:59]} 4. Ba4 {[%clk 0:03:01]}  b5 {[%clk 0:02:59]} 5. Bb3 {[%clk 0:03:01]}  Nf6 {[%clk 0:03:00]} 6. O-O {[%clk 0:03:01]}  Bc5 {[%clk 0:03:00]} 7. c3 {[%clk 0:03:01]}  d6 {[%clk 0:03:00]} 8. d4 {[%clk 0:02:58]}  exd4 {[%clk 0:02:57]} 9. cxd4 {[%clk 0:02:58]}  Bb6 {[%clk 0:02:58]} 10. h3 {[%clk 0:02:58]}  O-O {[%clk 0:02:58]} 11. Re1 {[%clk 0:02:57]}  Bb7 {[%clk 0:02:57]} 12. Bg5 {[%clk 0:02:48]}  h6 {[%clk 0:02:57]} 13. Bh4 {[%clk 0:02:48]}  g5 {[%clk 0:02:58]} 14. Bg3 {[%clk 0:02:41]}  Re8 {[%clk 0:02:57]} 15. d5 {[%clk 0:01:15]}  Ne7 {[%clk 0:02:54]} 16. Nbd2 {[%clk 0:01:03]}  Ng6 {[%clk 0:02:52]} 17. Bc2 {[%clk 0:00:47]}  Nh5 {[%clk 0:02:52]} 18. Bh2 {[%clk 0:00:44]}  Nhf4 {[%clk 0:02:52]} 19. Bxf4 {[%clk 0:00:40]}  Nxf4 {[%clk 0:02:51]} 20. Nf1 {[%clk 0:00:33]}  Qf6 {[%clk 0:02:49]} 21. Rb1 {[%clk 0:00:17]}  Re7 {[%clk 0:02:49]} 22. Ng3 {[%clk 0:00:15]}  Rae8 {[%clk 0:02:47]} 23. Nf5 {[%clk 0:00:10]}  Rd7 {[%clk 0:02:47]} 24. N5d4 {[%clk 0:00:07]}  Rdd8 {[%clk 0:02:40]} 25. Ne2 {[%clk 0:00:05]}  Nxh3+ {[%clk 0:02:39]} 26. gxh3 {[%clk 0:00:03]}  Qxf3 {[%clk 0:02:39]} 27. Nd4 {[%clk 0:00:02]}  Qxh3 {[%clk 0:02:38]} 0-1


[Site "https://www.chess.com"]

[Event "Titled Tuesday Blitz May 30 Late 2023"]
[White "Howell, David W L"]
[Black "Sanchez, Robert"]
[WhiteFideId "410608"]
[BlackFideId "2034360"]
[WhiteElo "2567"]
[BlackElo "1803"]
[Result "1-0"]
[Round "10"]
[TimeControl "180+2"]
[Date "2023.05.31"]
[WhiteClock "0:02:11"]
[BlackClock "0:02:07"]

1. e4 {[%clk 0:03:00]}  d5 {[%clk 0:02:59]} 2. d4 {[%clk 0:02:45]}  e6 {[%clk 0:02:58]} 3. e5 {[%clk 0:02:41]}  b6 {[%clk 0:02:56]} 4. c3 {[%clk 0:02:41]}  Qd7 {[%clk 0:02:57]} 5. Nd2 {[%clk 0:02:34]}  Ba6 {[%clk 0:02:56]} 6. Bxa6 {[%clk 0:02:35]}  Nxa6 {[%clk 0:02:56]} 7. Ne2 {[%clk 0:02:35]}  c5 {[%clk 0:02:52]} 8. O-O {[%clk 0:02:35]}  Nh6 {[%clk 0:02:52]} 9. Nf3 {[%clk 0:02:35]}  Nf5 {[%clk 0:02:52]} 10. g4 {[%clk 0:02:28]}  Nh6 {[%clk 0:02:43]} 11. h3 {[%clk 0:02:24]}  Nc7 {[%clk 0:02:40]} 12. Nf4 {[%clk 0:02:16]}  Be7 {[%clk 0:02:36]} 13. Nh5 {[%clk 0:02:14]}  Kf8 {[%clk 0:02:07]} 14. Bxh6 {[%clk 0:02:11]}  gxh6 {[%clk 0:02:07]} 15. Qd2 {[%clk 0:02:11]} 1-0


[Site "https://www.chess.com"]

[Event "Titled Tuesday Blitz May 30 Late 2023"]
[White "Ricaurte Lopez, Juan Carlos"]
[Black "Escalante Ramirez, Rafael"]
[WhiteFideId "3600327"]
[BlackFideId "3900177"]
[WhiteElo "2200"]
[BlackElo "2200"]
[Result "1-0"]
[Round "10"]
[TimeControl "180+2"]
[Date "2023.05.31"]
[WhiteClock "0:01:14"]
[BlackClock "0:00:01"]

1. e4 {[%clk 0:02:57]}  c5 {[%clk 0:02:58]} 2. d4 {[%clk 0:02:57]}  cxd4 {[%clk 0:02:58]} 3. c3 {[%clk 0:02:57]}  d3 {[%clk 0:02:58]} 4. Bxd3 {[%clk 0:02:55]}  d6 {[%clk 0:02:58]} 5. f4 {[%clk 0:02:54]}  Nc6 {[%clk 0:02:57]} 6. Nf3 {[%clk 0:02:54]}  Bg4 {[%clk 0:02:57]} 7. O-O {[%clk 0:02:52]}  e6 {[%clk 0:02:57]} 8. Kh1 {[%clk 0:02:52]}  Nf6 {[%clk 0:02:44]} 9. Qe2 {[%clk 0:02:49]}  Be7 {[%clk 0:02:43]} 10. a4 {[%clk 0:02:47]}  Qc7 {[%clk 0:02:34]} 11. Na3 {[%clk 0:02:46]}  a6 {[%clk 0:02:32]} 12. Be3 {[%clk 0:02:44]}  O-O {[%clk 0:02:30]} 13. Nc4 {[%clk 0:02:41]}  Nd7 {[%clk 0:02:25]} 14. b4 {[%clk 0:02:34]}  Bf6 {[%clk 0:01:56]} 15. Rac1 {[%clk 0:02:33]}  d5 {[%clk 0:01:47]} 16. exd5 {[%clk 0:02:30]}  exd5 {[%clk 0:01:47]} 17. Ncd2 {[%clk 0:02:14]}  Rae8 {[%clk 0:01:46]} 18. Qf2 {[%clk 0:02:13]}  g6 {[%clk 0:01:26]} 19. Nd4 {[%clk 0:02:11]}  Bg7 {[%clk 0:01:08]} 20. h3 {[%clk 0:02:06]}  Be6 {[%clk 0:01:00]} 21. N2f3 {[%clk 0:01:57]}  Nxd4 {[%clk 0:00:44]} 22. Nxd4 {[%clk 0:01:54]}  f5 {[%clk 0:00:42]} 23. Nxe6 {[%clk 0:01:50]}  Rxe6 {[%clk 0:00:41]} 24. Bd4 {[%clk 0:01:49]}  Nf6 {[%clk 0:00:39]} 25. c4 {[%clk 0:01:46]}  Qd7 {[%clk 0:00:31]} 26. cxd5 {[%clk 0:01:43]}  Nxd5 {[%clk 0:00:27]} 27. Bc4 {[%clk 0:01:38]}  Re4 {[%clk 0:00:16]} 28. Bxg7 {[%clk 0:01:27]}  Kxg7 {[%clk 0:00:16]} 29. Qb2+ {[%clk 0:01:26]}  Nf6 {[%clk 0:00:11]} 30. Rfd1 {[%clk 0:01:23]}  Qe7 {[%clk 0:00:11]} 31. Bd5 {[%clk 0:01:18]}  Re2 {[%clk 0:00:05]} 32. Qc3 {[%clk 0:01:15]}  Kh6 {[%clk 0:00:01]} 33. Bf3 {[%clk 0:01:14]} 1-0


[Site "https://www.chess.com"]

[Event "Titled Tuesday Blitz May 30 Late 2023"]
[White "Duda, Jan-Krzysztof"]
[Black "Hansen, Eric"]
[WhiteFideId "1170546"]
[BlackFideId "2606771"]
[WhiteElo "2790"]
[BlackElo "2561"]
[Result "0-1"]
[Round "11"]
[TimeControl "180+2"]
[Date "2023.05.31"]
[WhiteClock "0:00:01"]
[BlackClock "0:00:05"]

1. e4 {[%clk 0:03:00]}  e5 {[%clk 0:02:55]} 2. Nf3 {[%clk 0:03:01]}  Nc6 {[%clk 0:02:55]} 3. Bb5 {[%clk 0:03:01]}  a6 {[%clk 0:02:54]} 4. Ba4 {[%clk 0:03:01]}  Nf6 {[%clk 0:02:55]} 5. O-O {[%clk 0:03:02]}  Be7 {[%clk 0:02:51]} 6. Re1 {[%clk 0:03:02]}  b5 {[%clk 0:02:50]} 7. Bb3 {[%clk 0:03:03]}  O-O {[%clk 0:02:51]} 8. a4 {[%clk 0:03:01]}  Bb7 {[%clk 0:02:47]} 9. d3 {[%clk 0:03:00]}  d6 {[%clk 0:02:47]} 10. c3 {[%clk 0:02:52]}  Qd7 {[%clk 0:02:46]} 11. Bg5 {[%clk 0:02:38]}  h6 {[%clk 0:02:42]} 12. Bh4 {[%clk 0:02:38]}  Nh5 {[%clk 0:02:34]} 13. Bg3 {[%clk 0:02:32]}  Nxg3 {[%clk 0:02:31]} 14. hxg3 {[%clk 0:02:33]}  Na5 {[%clk 0:02:29]} 15. Bc2 {[%clk 0:02:25]}  c5 {[%clk 0:02:29]} 16. Nbd2 {[%clk 0:02:24]}  Bf6 {[%clk 0:02:25]} 17. Nf1 {[%clk 0:02:20]}  c4 {[%clk 0:02:15]} 18. Ne3 {[%clk 0:02:18]}  g6 {[%clk 0:01:55]} 19. Nd2 {[%clk 0:02:03]}  Rfc8 {[%clk 0:01:48]} 20. dxc4 {[%clk 0:01:34]}  bxc4 {[%clk 0:01:43]} 21. Qe2 {[%clk 0:01:34]}  Qe6 {[%clk 0:01:36]} 22. Red1 {[%clk 0:01:34]}  Rab8 {[%clk 0:01:35]} 23. Rab1 {[%clk 0:01:22]}  Ba8 {[%clk 0:01:22]} 24. Nd5 {[%clk 0:01:17]}  Bd8 {[%clk 0:01:16]} 25. Nb4 {[%clk 0:01:13]}  Bb7 {[%clk 0:01:06]} 26. Nf1 {[%clk 0:01:13]}  Nc6 {[%clk 0:01:02]} 27. Nd5 {[%clk 0:01:10]}  Ne7 {[%clk 0:00:57]} 28. Nfe3 {[%clk 0:01:09]}  Kg7 {[%clk 0:00:56]} 29. Rd2 {[%clk 0:00:59]}  Rc5 {[%clk 0:00:56]} 30. b4 {[%clk 0:00:41]}  cxb3 {[%clk 0:00:55]} 31. Rxb3 {[%clk 0:00:41]}  Qc8 {[%clk 0:00:48]} 32. c4 {[%clk 0:00:14]}  Nc6 {[%clk 0:00:46]} 33. Qd1 {[%clk 0:00:10]}  Ba8 {[%clk 0:00:37]} 34. Rxb8 {[%clk 0:00:04]}  Qxb8 {[%clk 0:00:37]} 35. Kh2 {[%clk 0:00:05]}  h5 {[%clk 0:00:26]} 36. g4 {[%clk 0:00:05]}  h4 {[%clk 0:00:23]} 37. Kh3 {[%clk 0:00:04]}  Bg5 {[%clk 0:00:22]} 38. Bd3 {[%clk 0:00:04]}  Nd4 {[%clk 0:00:21]} 39. Bf1 {[%clk 0:00:04]}  Bxd5 {[%clk 0:00:20]} 40. cxd5 {[%clk 0:00:02]}  a5 {[%clk 0:00:13]} 41. Kh2 {[%clk 0:00:02]}  Qc7 {[%clk 0:00:08]} 42. Bb5 {[%clk 0:00:01]}  Rc1 {[%clk 0:00:08]} 43. Rxd4 {[%clk 0:00:02]}  Rxd1 {[%clk 0:00:07]} 44. Rxd1 {[%clk 0:00:03]}  Qc3 {[%clk 0:00:05]} 45. Rd3 {[%clk 0:00:02]}  Qe1 {[%clk 0:00:06]} 46. Ba6 {[%clk 0:00:01]}  Qxf2 {[%clk 0:00:05]} 0-1


[Site "https://www.chess.com"]